bitfinex-derivatives/quotes_ETHF0:USTF0_20250114
["timestamp","ask_amount","ask_price","bid_price","bid_amount"]
[1736860649161,3.52155,3188.7,3188.4,0.31377]
[1736860649162,0.31377,3188.5,3188.4,0.31377]
[1736860649454,0.31377,3188.5,3188.4,41.11377]
[1736860650649,0.31377,3188.5,3188.4,40.8]
[1736860650847,3.2078,3188.7,3188.0,2.97270166]
[1736860651054,0.3138,3188.1,3188.0,2.49040166]
[1736860651345,0.78452,3188.1,3187.7,2.96430166]
[1736860651652,0.31386,3187.5,3187.4,4.10826166]
[1736860651956,0.31386,3187.5,3187.4,44.90826166]
[1736860653357,0.31386,3187.5,3187.4,43.60426166]
[1736860653560,3.2078,3187.9,3187.4,43.29040166]
[1736860653750,0.31385,3187.8,3187.7,2.80423166]
[1736860654258,0.31385,3187.8,3187.4,43.29040166]
[1736860654556,3.52166,3187.5,3187.4,40.8]
[1736860654953,3.52166,3187.5,3186.8,2.49040166]
[1736860654954,0.31392,3186.9,3186.8,2.49040166]
[1736860655559,0.31392,3186.9,3186.8,43.60433166]
[1736860656352,0.31392,3187.0,3186.9,0.31391]
[1736860656958,3.2078,3187.1,3186.9,0.4606]
[1736860657155,3.2078,3187.1,3186.8,43.29040166]
[1736860657355,0.31392,3186.9,3186.8,43.29040166]
[1736860657556,0.31392,3186.9,3186.8,43.60433166]
[1736860659262,3.52171,3187.1,3187.0,0.31391]
[1736860660058,3.2078,3187.5,3186.9,0.7848]
[1736860660355,3.52167,3187.5,3187.4,2.80427166]
[1736860660553,3.52167,3187.5,3187.4,43.60427166]
[1736860660863,3.52167,3187.5,3187.4,43.29040166]
[1736860661464,3.52167,3187.5,3187.4,43.60427166]
[1736860661759,3.52167,3187.5,3187.4,43.29040166]
[1736860662354,3.52167,3187.5,3187.4,43.60427166]
[1736860662758,3.52167,3187.5,3187.4,43.29040166]
[1736860664253,3.52167,3187.5,3187.4,43.60427166]
[1736860665055,0.31387,3187.5,3187.4,43.60427166]
[1736860665461,0.31386,3187.6,3187.5,0.31385]
[1736860665964,0.31386,3187.6,3187.5,0.77895]
[1736860667569,4.44898,3187.9,3187.4,40.8]
[1736860667875,0.31389,3187.2,3187.1,4.58970166]
[1736860668269,0.31389,3187.2,3187.1,45.38970166]
[1736860672369,0.31389,3187.2,3187.1,44.08570166]
[1736860674271,0.31389,3187.2,3187.1,43.77180166]
[1736860674471,0.31389,3187.2,3187.1,40.8]
[1736860674667,0.31396,3186.5,3186.4,3.52177]
[1736860675073,0.31396,3186.5,3186.4,46.81217166]
[1736860675572,0.31396,3186.5,3186.4,40.8]
[1736860675878,3.52176,3186.5,3186.4,40.8]
[1736860680879,8.2078,3186.5,3185.5,0.4806]
[1736860681081,2.98340166,3186.7,3184.3,3.2078]
[1736860681082,0.78516,3185.5,3184.3,3.2078]
[1736860681278,0.31416,3184.6,3184.4,44.55186166]
[1736860681470,0.31416,3184.5,3184.4,44.23770166]
[1736860682075,0.31416,3184.5,3184.4,44.55187166]
[1736860682279,0.31416,3184.5,3184.4,44.23770166]
[1736860682871,0.31416,3184.5,3184.4,40.8]
[1736860683373,0.31422,3183.9,3183.8,2.49040166]
[1736860683878,0.31422,3183.9,3183.8,43.29040166]
[1736860684480,0.31422,3183.9,3183.8,40.8]
[1736860684783,0.31422,3183.9,3183.2,0.49556156]
[1736860684784,0.31429,3183.2,3183.1,3.2078]
[1736860684976,4.55384,3184.5,3182.7,3.78840166]
[1736860684977,3.2078,3183.5,3182.7,3.78840166]
[1736860685184,3.99345,3183.5,3182.8,40.8]
[1736860685384,0.31432,3182.9,3182.8,40.8]
[1736860685587,3.2078,3183.5,3182.8,40.8]
[1736860685875,0.31432,3182.9,3182.8,40.8]
[1736860686981,0.31437,3182.5,3182.3,0.4642]
[1736860687278,3.99355,3183.1,3182.1,2.49040166]
[1736860687279,5.69820166,3183.1,3182.1,2.49040166]
[1736860687483,0.78577,3183.0,3182.0,3.2078]
[1736860687684,0.31437,3182.4,3182.0,3.2078]
[1736860687890,0.31437,3182.4,3182.3,40.8]
[1736860688576,3.2078,3183.1,3182.3,40.8]
[1736860688775,3.2078,3183.1,3182.4,3.03685913]
[1736860688776,0.31435,3182.6,3182.4,3.03685913]
[1736860688978,3.2078,3183.1,3182.4,3.03685913]
[1736860689180,0.31435,3182.6,3182.4,3.03685913]
[1736860689478,0.31436,3182.5,3182.4,3.03685913]
[1736860689684,3.99355,3183.1,3182.4,3.03685913]
[1736860689884,0.31436,3182.5,3182.4,3.03685913]
[1736860691182,0.31436,3182.6,3182.3,41.11438]
[1736860691387,0.78577,3183.0,3182.3,40.8]
[1736860691587,0.31436,3182.5,3182.3,40.8]
[1736860691885,0.31437,3182.4,3182.3,40.8]
[1736860693284,2.983,3183.2,3182.3,40.8]
[1736860693285,3.2078,3183.1,3182.3,40.8]
[1736860693482,0.31437,3182.4,3182.3,0.5011]
[1736860693989,0.31439,3182.2,3182.1,3.03685913]
[1736860694486,0.31439,3182.2,3182.1,43.83685913]
[1736860695378,0.31439,3182.2,3182.1,40.8]
[1736860697390,0.31439,3182.2,3182.1,41.1144]
[1736860697988,0.31439,3182.2,3182.1,40.8]
[1736860699290,0.31439,3182.2,3182.1,44.15125913]
[1736860699687,0.31439,3182.2,3182.1,43.83685913]
[1736860699987,0.31439,3182.2,3182.1,43.84062449]
[1736860700291,0.31439,3182.2,3182.1,40.80376536]
[1736860703485,0.31439,3182.2,3182.1,41.11816536]
[1736860703689,0.31438,3182.3,3182.2,0.31438]
[1736860704590,0.78588,3182.6,3182.1,40.80376536]
[1736860704785,0.31439,3182.2,3182.1,41.11815536]
[1736860705484,0.31439,3182.2,3182.1,40.80376536]
[1736860705687,0.31439,3182.2,3182.1,41.11816536]
[1736860706284,3.2078,3182.7,3182.1,43.84062449]
[1736860706486,3.2078,3183.1,3182.8,0.31432]
[1736860706690,3.2078,3183.1,3182.6,3.03685913]
[1736860706885,3.2078,3183.1,3183.0,0.31431]
[1736860707285,0.31426,3183.5,3183.4,0.31426]
[1736860707490,0.31426,3183.6,3183.4,0.31426]
[1736860707803,0.31425,3183.6,3183.4,40.8]
[1736860707993,4.1646,3184.2,3183.5,3.03685913]
[1736860708188,3.52199,3184.2,3184.1,0.3142]
[1736860708386,3.52199,3184.2,3184.1,41.1142]
[1736860708588,0.31418,3184.4,3184.3,0.31417]
[1736860708787,0.31417,3184.5,3184.2,0.31419]
[1736860708994,3.2078,3184.6,3184.1,43.83685913]
[1736860709288,0.31417,3184.5,3184.3,0.31417]
[1736860709692,0.31416,3184.5,3184.4,0.31416]
[1736860709995,3.2078,3185.0,3184.1,47.04465913]
[1736860710192,3.2078,3184.6,3184.1,47.04465913]
[1736860710397,3.2078,3184.6,3184.5,0.31416]
[1736860710798,3.2078,3185.0,3184.1,47.04465913]
[1736860711095,0.31416,3184.5,3184.3,0.31417]
[1736860711294,3.2078,3184.6,3184.1,44.0078]
[1736860711699,0.31418,3184.3,3184.2,0.31418]
[1736860712201,0.31416,3184.5,3184.4,0.31417]
[1736860712399,3.2078,3184.6,3184.5,0.31416]
[1736860712400,3.52195,3184.6,3184.5,0.31416]
[1736860714100,3.2078,3184.6,3184.5,0.31416]
[1736860714699,3.2078,3184.6,3184.5,1.25546]
[1736860715091,3.2078,3185.2,3184.5,0.9413]
[1736860715399,3.2078,3185.2,3185.1,2.81501745]
[1736860715605,3.2078,3185.2,3184.8,2.50091745]
[1736860715787,3.5219,3185.2,3185.0,0.31411]
[1736860716493,3.52189,3185.2,3185.0,0.31411]
[1736860716694,3.2078,3185.2,3185.1,41.1141]
[1736860716891,3.2078,3185.2,3185.1,40.8]
[1736860717294,3.52189,3185.2,3185.1,40.8]
[1736860717499,3.2078,3185.2,3184.8,2.50091745]
[1736860717695,3.2078,3185.2,3185.1,0.3141]
[1736860718106,3.2078,3185.2,3185.1,43.61501745]
[1736860718402,3.2078,3185.2,3185.1,2.81501745]
[1736860718805,3.2078,3185.2,3185.1,43.61501745]
[1736860719099,0.31406,3185.5,3185.3,0.31407]
[1736860719403,0.31408,3185.4,3185.3,0.31408]
[1736860720005,0.31408,3185.4,3185.2,0.31408]
[1736860720404,0.31408,3185.4,3185.1,43.30091745]
[1736860720405,3.2078,3185.8,3185.1,43.30091745]
[1736860720603,0.31404,3185.7,3185.5,0.31406]
[1736860720805,0.31404,3185.7,3185.5,0.31405]
[1736860721001,0.4623,3186.1,3185.4,3.80691745]
[1736860721200,0.31404,3185.8,3185.6,0.31404]
[1736860721597,0.4623,3186.1,3185.4,3.80691745]
[1736860721802,3.7089,3186.2,3185.8,0.31403]
[1736860722102,3.2078,3186.2,3186.0,2.50091745]
[1736860722302,0.31399,3186.3,3186.1,0.314]
[1736860722603,3.6614,3186.6,3186.1,0.314]
[1736860722604,0.31397,3186.5,3186.1,0.314]
[1736860722803,0.31397,3186.5,3186.3,2.81489745]
[1736860723002,3.2078,3186.6,3186.3,2.50091745]
[1736860723501,0.31399,3186.3,3186.1,1.61999]
[1736860723806,0.31399,3186.3,3186.2,0.31399]
[1736860724305,0.31399,3186.3,3186.2,41.11399]
[1736860724904,0.31398,3186.4,3186.3,0.31398]
[1736860725105,3.52176,3186.6,3186.5,0.31396]
[1736860725306,0.31395,3186.6,3186.5,0.31396]
[1736860725702,0.31395,3186.6,3186.5,41.11396]
[1736860726004,0.4991,3186.9,3186.6,0.31395]
[1736860726207,0.31395,3186.6,3186.5,40.8]
[1736860727307,0.4991,3186.9,3186.5,40.8]
[1736860727611,0.31395,3186.7,3186.6,0.31395]
[1736860728107,3.2078,3187.1,3186.7,0.31393]
[1736860728408,0.31389,3187.3,3187.1,0.3139]
[1736860728607,0.4536,3187.4,3187.1,0.3139]
[1736860728608,0.31389,3187.2,3187.1,0.3139]
[1736860729106,0.31389,3187.2,3187.0,3.02831167]
[1736860729107,0.31387,3187.5,3187.3,0.31388]
[1736860729504,3.2078,3187.6,3187.4,0.31387]
[1736860729505,3.52166,3187.6,3187.4,0.31387]
[1736860729808,0.31382,3187.9,3187.5,0.31386]
[1736860730002,0.31386,3187.5,3187.4,0.4658]
[1736860730202,3.99234,3188.0,3187.3,3.34219167]
[1736860730397,3.2078,3188.0,3187.3,3.02831167]
[1736860730809,0.31387,3187.5,3187.4,0.31387]
[1736860731209,0.31386,3187.5,3187.4,40.8]
[1736860731407,0.31386,3187.5,3187.1,1.305]
[1736860731408,0.31389,3187.2,3187.1,1.305]
[1736860731908,0.31389,3187.2,3187.1,42.4189]
[1736860732209,0.31389,3187.2,3187.1,1.6189]
[1736860732604,0.31389,3187.2,3187.1,1.305]
[1736860733308,3.99246,3187.6,3187.0,43.82831167]
[1736860733309,0.3139,3187.1,3187.0,40.8]
[1736860733608,0.31391,3187.0,3186.9,1.305]
[1736860734006,0.31391,3187.1,3187.0,0.3139]
[1736860734508,0.31391,3187.0,3186.9,41.11392]
[1736860735608,0.4679,3187.4,3187.0,0.31391]
[1736860735609,0.31391,3187.1,3187.0,0.31391]
[1736860735912,0.31389,3187.2,3187.1,0.3139]
[1736860736713,0.31389,3187.3,3187.2,0.31389]
[1736860736916,0.31387,3187.5,3187.4,0.31387]
[1736860737206,3.2078,3187.6,3187.5,0.31386]
[1736860737600,3.2078,3188.0,3187.5,1.305]
[1736860737810,3.2078,3188.0,3187.9,0.31382]
[1736860738012,0.31382,3187.9,3187.8,0.31383]
[1736860738208,3.52162,3188.0,3187.9,0.31382]
[1736860738404,3.52162,3188.0,3187.9,41.11382]
[1736860738705,0.31382,3188.0,3187.9,40.8]
[1736860739400,0.31382,3188.0,3187.9,41.11382]
[1736860740503,0.31382,3188.0,3187.9,40.8]
[1736860741111,0.31382,3188.0,3187.9,41.11382]
[1736860741506,0.31378,3188.3,3187.9,41.11381]
[1736860741711,3.99226,3188.4,3187.9,40.8]
[1736860741905,3.99226,3188.4,3187.6,4.00161167]
[1736860741906,0.31384,3187.8,3187.7,0.31384]
[1736860742116,0.31384,3187.7,3187.6,0.4784]
[1736860742313,3.62316841,3188.3,3187.5,1.296]
[1736860742314,0.31385,3187.6,3187.5,1.296]
[1736860743312,0.31388,3187.3,3187.2,40.8]
[1736860743616,3.57560374,3187.6,3187.4,0.31386]
[1736860743617,0.31387,3187.5,3187.4,0.31386]
[1736860743911,3.57560374,3187.6,3187.4,40.8]
[1736860744306,3.57560374,3187.6,3187.5,0.31386]
[1736860744914,3.57560374,3187.6,3187.4,42.096]
[1736860745211,0.31386,3187.5,3187.4,42.096]
[1736860745419,0.31386,3187.5,3187.4,40.8]
[1736860745617,3.77820536,3187.5,3187.4,40.8]
[1736860747518,3.77820536,3187.5,3187.4,41.11387]
[1736860748021,3.77820536,3187.5,3187.4,40.8]
[1736860750619,0.31386,3187.5,3187.4,43.61169562]
[1736860750821,0.31386,3187.5,3187.4,43.29783562]
[1736860751015,0.31386,3187.5,3187.4,40.8]
[1736860751220,3.45348407,3187.5,3186.7,3.2078]
[1736860751423,0.31393,3186.8,3186.7,3.52174]
[1736860751715,0.31395,3186.7,3186.6,0.31394]
[1736860752422,0.31395,3186.7,3186.6,41.11394]
[1736860752814,3.58420908,3186.8,3186.7,0.31394]
[1736860753018,3.27026908,3186.8,3186.7,0.31394]
[1736860753220,4.69298839,3218.5,3186.7,0.31394]
[1736860753221,3.38799767,3186.9,3186.8,0.31393]
[1736860753419,3.38799767,3186.9,3186.8,2.81176562]
[1736860753715,3.38799767,3186.9,3186.8,43.61176562]
[1736860753915,3.2078,3187.7,3186.8,48.29783562]
[1736860754116,3.52166,3187.7,3187.6,2.49783562]
[1736860754516,3.52166,3187.7,3187.6,2.81168562]
[1736860754717,3.52166,3187.7,3187.6,43.61168562]
[1736860755119,3.52166,3187.7,3187.6,43.29783562]
[1736860755318,3.52166,3187.7,3187.6,41.11385]
[1736860755721,3.52166,3187.7,3187.6,40.8]
[1736860755918,3.52166,3187.7,3187.6,41.11385]
[1736860756119,3.52166,3187.7,3187.6,40.8]
[1736860756419,0.31386,3187.7,3187.6,40.8]
[1736860756820,0.31384,3187.7,3187.6,40.8]
[1736860757020,0.9745,3188.0,3187.6,40.8]
[1736860757324,1.28832,3188.0,3187.9,0.31382]
[1736860757514,0.31382,3187.9,3187.8,3.34032163]
[1736860757713,0.9745,3188.0,3187.8,3.02649163]
[1736860757928,0.31381,3188.1,3188.0,0.3138]
[1736860758315,3.67680466,3188.1,3188.0,0.3138]
[1736860760023,3.36299466,3188.1,3187.6,40.8]
[1736860760333,0.31384,3187.7,3187.6,40.8]
[1736860760529,0.31385,3187.6,3187.5,3.2078]
[1736860760827,0.31385,3187.6,3186.9,0.31392]
[1736860760828,0.31392,3187.0,3186.9,0.31392]
[1736860761024,0.31392,3187.0,3186.9,42.40992]
[1736860761527,0.31392,3187.0,3186.9,42.096]
[1736860761723,3.82059308,3187.0,3186.9,42.096]
[1736860762032,3.82059308,3187.0,3186.9,40.8]
[1736860762331,3.50667308,3187.0,3186.9,44.14041163]
[1736860762523,3.50667308,3187.0,3186.9,47.34821163]
[1736860763025,0.72698236,3187.5,3187.4,0.31386]
[1736860763226,1.26976,3187.6,3187.5,0.31386]
[1736860765429,3.62092236,3187.9,3187.3,3.02649163]
[1736860765627,0.31385,3187.7,3187.6,0.31385]
[1736860766128,0.31386,3187.6,3187.5,0.31386]
[1736860766430,0.31387,3187.5,3187.4,0.31387]
[1736860766624,0.3139,3187.2,3187.1,0.3139]
[1736860766825,0.3139,3187.2,3187.1,1.6099]
[1736860767026,0.3139,3187.2,3187.1,0.3139]
[1736860767233,0.3139,3187.2,3187.1,1.6099]
[1736860767437,0.31391,3187.0,3186.9,40.8]
[1736860767829,3.11458716,3187.0,3186.9,41.11392]
[1736860768034,0.41312236,3187.1,3186.9,40.8]
[1736860768336,0.78829,3187.3,3187.2,0.31389]
[1736860769033,0.4744,3187.3,3187.2,0.31389]
[1736860769229,0.4744,3187.3,3186.9,40.8]
[1736860769431,0.31391,3187.0,3186.9,41.11391]
[1736860770731,0.31391,3187.1,3187.0,0.3139]
[1736860771037,0.4744,3187.3,3186.9,40.8]
[1736860771338,0.31391,3187.0,3186.9,40.8]
[1736860772038,3.92566175,3187.0,3186.9,40.8]
[1736860774138,4.33878411,3187.0,3186.9,40.8]
[1736860774537,4.02487411,3187.0,3186.4,1.303]
[1736860774737,0.31396,3186.6,3186.5,0.31395]
[1736860774939,0.31396,3186.6,3186.5,0.31396]
[1736860775133,3.60996555,3186.6,3186.5,41.11396]
[1736860776942,3.60996555,3186.6,3186.5,40.8]
[1736860780053,3.29600555,3186.6,3186.5,40.8]
[1736860780255,0.41312236,3186.9,3186.5,41.11396]
[1736860780453,3.52172,3187.1,3187.0,0.31391]
[1736860780756,0.31393,3187.0,3186.9,0.31392]
[1736860780950,0.31393,3187.0,3186.9,41.11392]
[1736860782055,3.52171,3187.1,3187.0,0.31391]
[1736860782246,3.52171,3187.1,3187.0,2.81297616]
[1736860782447,0.31391,3187.1,3187.0,2.81297616]
[1736860782648,0.78639,3187.2,3187.1,0.3139]
[1736860783149,0.4744,3187.3,3187.0,2.49906616]
[1736860783354,3.62084174,3187.6,3187.4,0.31386]
[1736860783355,0.31388,3187.5,3187.4,0.31386]
[1736860783653,0.3139,3187.3,3187.2,0.31388]
[1736860783854,0.3139,3187.2,3187.1,0.3139]
[1736860784551,0.3139,3187.2,3186.9,42.103]
[1736860784552,0.31391,3187.0,3186.9,42.103]
[1736860784758,0.31391,3187.0,3186.9,1.303]
[1736860785352,3.93695476,3187.0,3186.9,1.303]
[1736860786754,3.93695476,3187.0,3186.9,1.61692]
[1736860787159,3.93695476,3187.0,3186.9,1.303]
[1736860787361,3.93695476,3187.0,3186.9,1.61692]
[1736860788656,3.93695476,3187.0,3186.9,0.31392]
[1736860789157,3.62304476,3187.0,3186.9,0.31392]
[1736860789455,3.93695476,3187.0,3186.9,0.31392]
[1736860789659,3.93695476,3187.0,3186.9,41.11392]
[1736860790062,0.41304174,3187.1,3186.9,40.8]
[1736860790259,3.6647,3187.6,3187.0,2.49906616]
[1736860790457,3.76084198,3187.0,3186.9,40.8]
[1736860790854,0.31391,3187.0,3186.9,40.8]
[1736860791170,3.67637185,3187.0,3186.9,40.8]
[1736860791659,0.31393,3186.8,3186.7,0.31394]
[1736860792060,0.31393,3186.8,3186.7,40.8]
[1736860792257,0.31393,3186.8,3186.7,41.11394]
[1736860792464,3.76956488,3186.8,3186.7,41.11394]
[1736860793060,3.76956488,3186.8,3186.7,40.8]
[1736860793267,3.45563488,3186.8,3186.4,2.81303616]
[1736860793466,0.31396,3186.5,3186.4,2.81303616]
[1736860793764,0.31396,3186.5,3186.4,43.61303616]
[1736860794153,0.31396,3186.5,3186.4,43.29906616]
[1736860794361,0.31396,3186.5,3186.4,40.8]
[1736860794960,3.73392621,3186.5,3186.4,40.8]
[1736860795160,0.31399,3186.2,3186.1,3.2078]
[1736860795462,6.70396237,3186.5,3185.6,0.4606]
[1736860795463,0.31404,3185.7,3185.6,0.77463]
[1736860795665,0.31404,3185.7,3185.6,41.57463]
[1736860796171,0.91344174,3186.1,3185.6,41.2606]
[1736860796459,3.820349,3186.0,3185.9,0.31401]
[1736860797560,0.31403,3185.9,3185.8,0.31402]
[1736860797959,3.90515362,3185.9,3185.8,0.31402]
[1736860798567,3.59112362,3185.9,3185.8,0.31402]
[1736860798962,3.35812981,3186.0,3185.9,0.31402]
[1736860799459,0.81441,3186.1,3186.0,0.31401]
[1736860799864,0.31401,3186.1,3186.0,2.81307616]
[1736860800261,0.31399,3186.3,3186.2,0.31398]
[1736860801062,3.2078,3186.4,3186.0,40.8]
[1736860801265,0.314,3186.1,3186.0,40.8]
[1736860802169,3.56493992,3186.1,3186.0,43.61307616]
[1736860802773,0.41304174,3186.3,3186.0,43.29906616]
[1736860802966,3.2078,3186.4,3186.3,0.31398]
[1736860803271,4.41978174,3186.8,3186.7,0.31394]
[1736860803573,4.00674,3186.8,3186.7,0.31394]
[1736860803965,7.4777255,3186.8,3186.7,0.31394]
[1736860804165,7.89076724,3186.8,3186.7,0.31394]
[1736860805176,4.68296724,3186.8,3186.7,0.31394]
[1736860805377,4.2699255,3186.8,3186.7,0.31394]
[1736860805988,0.41304174,3187.0,3186.6,2.49906616]
[1736860806277,3.2078,3187.2,3186.6,2.49906616]
[1736860806474,0.31395,3186.6,3186.5,3.2078]
[1736860806669,0.31395,3186.6,3186.5,0.31396]
[1736860807274,0.31395,3186.7,3186.6,0.31394]
[1736860808075,3.3892253,3186.8,3186.6,2.49906616]
[1736860808279,3.7031653,3186.8,3186.7,0.31394]
[1736860808471,3.3892253,3186.8,3186.7,0.31394]
[1736860808672,3.7031553,3186.8,3186.7,0.31394]
[1736860809175,0.31394,3186.7,3186.6,2.81300616]
[1736860809572,3.3892253,3186.8,3186.7,0.31394]
[1736860809573,3.7031653,3186.8,3186.7,0.31394]
[1736860809973,3.3892253,3186.8,3186.3,4.57801616]
[1736860810174,0.31396,3186.6,3186.5,0.31395]
[1736860810481,3.3892253,3186.8,3186.3,3.79306616]
[1736860810774,3.2078,3186.4,3185.7,3.2078]
[1736860810980,3.2078,3186.4,3185.4,2.49906616]
[1736860810981,0.31405,3185.7,3185.6,0.31404]
[1736860811180,0.31401,3186.0,3185.9,0.31401]
[1736860811575,0.31401,3186.0,3185.7,43.29906616]
[1736860811576,0.314,3186.2,3186.1,0.31399]
[1736860813576,0.4915,3186.3,3185.7,43.29906616]
[1736860813782,0.31403,3185.8,3185.7,40.8]
[1736860814381,3.78762838,3185.8,3185.7,41.11404]
[1736860815882,3.78762838,3185.8,3185.7,40.8]
[1736860816081,3.78762838,3185.8,3185.7,41.11404]
[1736860816580,3.78762838,3185.8,3185.7,40.8]
[1736860817579,3.78762838,3185.8,3185.7,41.11404]
[1736860818679,3.78762838,3185.8,3185.7,40.8]
[1736860819689,3.78762838,3185.8,3185.7,41.11404]
[1736860820380,3.47359838,3185.8,3185.4,2.49906616]
[1736860820581,4.93933,3185.7,3185.2,0.31408]
[1736860820777,0.78515,3185.6,3185.1,2.81316616]
[1736860821087,0.31408,3185.3,3185.2,41.11409]
[1736860821480,3.81915059,3185.3,3185.2,41.11409]
[1736860822883,3.81915059,3185.3,3185.2,40.8]
[1736860826786,3.81915059,3185.3,3185.2,41.11409]
[1736860827090,0.41304174,3185.6,3185.5,0.31406]
[1736860827286,0.31403,3185.8,3185.7,0.31402]
[1736860827484,0.31405,3185.7,3185.6,0.31404]
[1736860827684,0.31405,3185.7,3185.4,1.294]
[1736860827685,0.31406,3185.5,3185.4,1.294]
[1736860827988,0.79736,3185.6,3185.5,0.31406]
[1736860828495,0.79736,3185.6,3185.5,41.11406]
[1736860830584,0.31405,3185.7,3185.6,0.31404]
[1736860830986,3.8079059,3185.7,3185.6,0.31404]
[1736860831293,0.31405,3185.6,3185.5,43.61311616]
[1736860831694,0.31405,3185.6,3185.5,40.8]
[1736860833089,3.59185645,3185.6,3185.5,40.8]
[1736860833287,3.27780645,3185.6,3185.2,2.49906616]
[1736860833493,3.27780645,3185.6,3184.9,2.49906616]
[1736860833696,0.3141,3185.1,3185.0,3.52191]
[1736860833895,0.31409,3185.3,3185.2,0.31408]
[1736860834196,0.31407,3185.5,3185.4,0.31406]
[1736860834594,3.90769546,3185.5,3185.4,0.31406]
[1736860834901,3.59362546,3185.5,3185.4,41.11406]
[1736860835297,0.31404,3185.7,3185.6,0.31403]
[1736860835596,0.31404,3185.7,3185.6,2.81309616]
[1736860836099,0.31404,3185.8,3185.7,0.31403]
[1736860836397,0.31404,3185.7,3185.6,0.31404]
[1736860836795,3.58715049,3185.8,3185.5,0.4776]
[1736860837093,4.37226049,3185.7,3185.0,5.70686616]
[1736860837298,0.3141,3185.2,3185.1,0.31409]
[1736860837693,0.413104,3185.6,3185.1,40.8]
[1736860837893,0.31408,3185.4,3185.3,0.31407]
[1736860838093,0.31408,3185.4,3185.3,2.81313616]
[1736860838493,3.92830894,3185.4,3185.3,2.81313616]
[1736860838694,4.34141294,3185.4,3185.3,2.81313616]
[1736860838897,4.34141294,3185.4,3185.3,43.61313616]
[1736860839104,0.413104,3185.4,3185.3,43.61313616]
[1736860839307,0.31406,3185.7,3185.6,0.31404]
[1736860839803,3.40750706,3185.7,3185.3,43.29906616]
[1736860840005,0.31407,3185.5,3185.4,0.31405]
[1736860840603,0.31406,3185.6,3185.5,0.31404]
[1736860841102,3.83968911,3185.6,3185.5,0.31404]
[1736860841299,0.31407,3185.4,3185.3,43.61313616]
[1736860842398,0.31407,3185.5,3185.4,0.31406]
[1736860843504,0.31406,3185.7,3185.6,0.31404]
[1736860843705,1.25104,3186.0,3185.7,0.31403]
[1736860843706,0.31403,3185.8,3185.7,0.31403]
[1736860844005,3.93278714,3185.8,3185.7,0.31403]
[1736860844210,4.03186114,3185.8,3185.7,0.31403]
[1736860844411,4.34589114,3185.8,3185.7,0.31403]
[1736860844613,0.727134,3185.8,3185.7,0.31403]
[1736860844814,3.93075862,3185.8,3185.7,0.31403]
[1736860845121,0.31407,3185.4,3185.3,41.11407]
[1736860846318,0.3141,3185.2,3185.1,0.3141]
[1736860846721,3.34111433,3185.2,3185.1,0.3141]
[1736860847017,0.413104,3185.3,3185.1,40.8]
[1736860847219,0.9551,3186.0,3185.1,40.8]
[1736860847519,3.60444508,3185.7,3185.6,0.31403]
[1736860847719,0.31406,3185.6,3185.5,0.31406]
[1736860847921,3.29039508,3185.7,3185.4,5.70686616]
[1736860848220,0.727144,3185.8,3185.7,0.31404]
[1736860848406,0.31404,3185.8,3185.7,1.60704]
[1736860849715,0.31403,3185.9,3185.8,0.31402]
[1736860850014,0.31402,3186.0,3185.9,0.31401]
[1736860850614,0.31403,3185.9,3185.8,0.31402]
[1736860852121,0.31403,3185.8,3185.7,1.60703]
[1736860855433,0.31403,3185.8,3185.7,1.293]
[1736860856816,0.31402,3186.0,3185.9,0.31401]
[1736860857216,0.31402,3186.0,3185.9,41.11401]
[1736860857420,3.68876629,3186.0,3185.9,41.11401]
[1736860858016,3.68876629,3186.0,3185.9,40.8]
[1736860863729,0.31402,3186.0,3185.9,41.11402]
[1736860863932,0.31401,3186.1,3186.0,0.314]
[1736860864129,3.2078,3187.1,3186.1,1.57002]
[1736860864432,0.40977505,3187.2,3186.9,2.49906616]
[1736860864632,0.40977505,3187.2,3187.1,0.3139]
[1736860864820,0.40977505,3187.2,3187.1,41.1139]
[1736860865022,0.4862,3187.7,3187.1,40.8]
[1736860865226,14.58420477,3188.0,3187.5,3.2078]
[1736860865429,0.31384,3187.8,3187.7,2.81290616]
[1736860865625,0.31384,3187.8,3187.5,3.2078]
[1736860865826,0.4978,3188.1,3187.5,3.2078]
[1736860865827,0.31385,3187.6,3187.5,3.2078]
[1736860866026,0.31385,3187.7,3187.5,3.52166]
[1736860866227,0.31385,3187.7,3187.5,3.2078]
[1736860866429,0.31384,3187.8,3187.7,0.31384]
[1736860866630,0.31385,3187.6,3187.5,3.52166]
[1736860866823,0.31385,3187.7,3187.6,0.31385]
[1736860867028,3.31388845,3188.0,3187.4,2.49906616]
[1736860867230,3.52161,3188.1,3188.0,0.31381]
[1736860867436,0.31382,3187.9,3187.8,1.29]
[1736860868536,0.31382,3187.9,3187.8,1.60383]
[1736860868836,3.2078,3188.1,3188.0,0.31381]
[1736860869036,3.5216,3188.1,3188.0,0.31381]
[1736860870127,3.2078,3188.1,3188.0,0.31381]
[1736860870433,3.5216,3188.1,3188.0,41.11381]
[1736860871239,0.3138,3188.1,3188.0,41.11381]
[1736860871429,0.4862,3188.4,3188.0,40.8]
[1736860871632,3.2078,3188.5,3188.3,2.49906616]
[1736860871934,3.48898973,3188.4,3188.3,2.49906616]
[1736860872128,3.48898973,3188.4,3188.3,2.81284616]
[1736860872329,3.2078,3188.5,3188.4,0.31377]
[1736860873131,3.2078,3188.9,3188.3,2.49906616]
[1736860873333,3.2078,3188.9,3188.8,0.31373]
[1736860873632,3.43789422,3189.0,3188.7,3.78806616]
[1736860873830,0.31373,3188.8,3188.7,3.78806616]
[1736860874029,0.31373,3188.8,3188.7,44.58806616]
[1736860874234,3.43789422,3189.0,3188.7,44.58806616]
[1736860874433,0.31373,3188.8,3188.7,44.90180616]